Workbook

Sheet Modelo
A5: MODELO - Deve ser adaptado utilizando os valores, taxas e prazos do contrato
A7: Valores em Reais
A8: Data Saldo | B8: Saldo
A9: 2022-10-17 | B9: 10000000
A11: Valores em Reais
A12: Data de Vencimento | B12: Índice de Atualização | C12: Principal Atualizado | D12: Juros Compensatórios | H12: Amortização | J12: Prestação
D13: Taxa | E13: Dias Úteis * | F13: Multiplicador | G13: Juros Compensatórios | H13: N° de Parcelas Restantes Restantes | I13: Valor
A14: 2022-11-16 | B14: =(1+VLOOKUP(A9,SELIC!$A$2:$B$325,2,2)%)^E14 -> 1.010206759 | C14: =round_to_even((B9)*ROUND(B14,15),2) -> 10102067.59 | D14: 1.1 | E14: =NETWORKDAYS(A9,A14-1,feriados) -> 20 | F14: =ROUND(B14*((1+D14%)^(E14/252)),15) -> 1.011084251 | G14: =round_to_even((B9)*F14,2)-C14 -> 8774.92 | H14: 261 | I14: =round_to_even(C14/H14,2) -> 38705.24 | J14: =I14+G14 -> 47480.16
A15: 2022-12-15 | B15: =(1+VLOOKUP(A14,SELIC!$A$2:$B$325,2,2)%)^E15 -> 1.010719822 | C15: =round_to_even((C14-I14)*ROUND(B15,15),2) -> 10171239.81 | D15: =D14 -> 1.1 | E15: =NETWORKDAYS(A14,A15-1,feriados) -> 21 | F15: =ROUND(B15*((1+D15%)^(E15/252)),15) -> 1.011641677 | G15: =round_to_even((C14-I14)*F15,2)-C15 -> 9276.96 | H15: =H14-1 -> 260 | I15: =round_to_even(C15/H15,2) -> 39120.15 | J15: =I15+G15 -> 48397.11
A16: 2023-01-16 | B16: =(1+VLOOKUP(A15,SELIC!$A$2:$B$325,2,2)%)^E16 -> 1.011233147 | C16: =round_to_even((C15-I15)*ROUND(B16,15),2) -> 10245935.25 | D16: =D15 -> 1.1 | E16: 22 | F16: =ROUND(B16*((1+D16%)^(E16/252)),15) -> 1.012199411 | G16: =round_to_even((C15-I15)*F16,2)-C16 -> 9790.3 | H16: =H15-1 -> 259 | I16: =round_to_even(C16/H16,2) -> 39559.6 | J16: =I16+G16 -> 49349.9
A17: 2023-02-15 | B17: =(1+VLOOKUP(A16,SELIC!$A$2:$B$325,2,2)%)^E17 -> 1.011233147 | C17: =round_to_even((C16-I16)*ROUND(B17,15),2) -> 10321025.37 | D17: 1.1 | E17: 22 | F17: 1.012199411 | G17: =round_to_even((C16-I16)*F17,2)-C17 -> 9862.05 | H17: 258 | I17: =round_to_even(C17/H17,2) -> 40003.97 | J17: 49866.02
A18: 2023-03-15 | B18: =(1+VLOOKUP(A17,SELIC!$A$2:$B$325,2,2)%)^E18 -> 1.009181412 | C18: =round_to_even((C17-I17)*ROUND(B18,15),2) -> 10375415.7 | D18: 1.1 | E18: 18 | F18: 1.009970319 | G18: =round_to_even((C17-I17)*F18,2)-C18 -> 8110.77 | H18: 257 | I18: =round_to_even(C18/H18,2) -> 40371.27 | J18: 48482.04
A19: 2023-03-27 | B19: =(1+VLOOKUP(A18,SELIC!$A$2:$B$325,2,2)%)^E19 -> 1.00407027 | C19: =((C18-I18)*ROUND(B19,15)) -> 10377110.85 | D19: =D18 -> 1.1 | E19: 8 | F19: 1.004419044 | G19: =ROUND((C18-I18)*F19,15)-C19 -> 3604.593217
A20: 2023-04-17 | B20: =(1+VLOOKUP(A19,SELIC!$A$2:$B$325,2,2)%)^E20 -> 1.00713384 | C20: =round_to_even((C19-I19)*ROUND(B20,15),2) -> 10451139.5 | D20: =D18 -> 1.1 | E20: 14 | F20: 1.007746137 | G20: =round_to_even((C19-I19+G19)*F20,2)-C20 -> 9986.38 | H20: =H18-1 -> 256 | I20: =round_to_even(C20/H20,2) -> 40824.76 | J20: =I20+G20 -> 50811.14
A21: 2023-05-08 | B21: =(1+VLOOKUP(A20,SELIC!$A$2:$B$325,2,2)%)^E21 -> 1.006622597 | C21: =((C20-I20)*ROUND(B21,15)) -> 10479258.06 | D21: =D20 -> 1.1 | E21: 13 | F21: =ROUND(B21*((1+D21%)^(E21/252)),15) -> 1.007190857 | G21: =ROUND((C20-I20)*F21,15)-C21 -> 5915.76405
A22: 2023-05-15 | B22: =(1+VLOOKUP(A21,SELIC!$A$2:$B$325,2,2)%)^E22 -> 1.002541981 | C22: =round_to_even((C21-I21)*ROUND(B22,15),2) -> 10505896.13 | D22: =D20 -> 1.1 | E22: 5 | F22: 1.002759618 | G22: =round_to_even((C21-I21+G21)*F22,2)-C22 -> 8212.77 | H22: =H20-1 -> 255 | I22: =round_to_even(C22/H22,2) -> 41199.59 | J22: =I22+G22 -> 49412.36
A23: 2023-06-15 | B23: =(1+VLOOKUP(A22,SELIC!$A$2:$B$325,2,2)%)^E23 -> 1.011233147 | C23: =round_to_even((C22-I22)*ROUND(B23,15),2) -> 10582248.01 | D23: 1.1 | E23: 22 | F23: 1.012199411 | G23: =round_to_even((C22-I22)*F23,2)-C23 -> 10111.66 | H23: 254 | I23: =round_to_even(C23/H23,2) -> 41662.39 | J23: 51774.05
A24: 2023-06-26 | B24: =(1+VLOOKUP(A23,SELIC!$A$2:$B$325,2,2)%)^E24 -> 1.003560581 | C24: =((C23-I23)*ROUND(B24,15)) -> 10578116.23 | D24: =D23 -> 1.1 | E24: 7 | F24: =ROUND(B24*((1+D24%)^(E24/252)),15) -> 1.003865597 | G24: =ROUND((C23-I23)*F24,15)-C24 -> 3215.04285
A25: 2023-07-17 | B25: =(1+VLOOKUP(A24,SELIC!$A$2:$B$325,2,2)%)^E25 -> 1.007645344 | C25: =round_to_even((C24-I24)*ROUND(B25,15),2) -> 10658989.57 | D25: =D23 -> 1.1 | E25: 15 | F25: 1.008301723 | G25: =round_to_even((C24-I24+G24)*F25,2)-C25 -> 10184.98 | H25: =H23-1 -> 253 | I25: =round_to_even(C25/H25,2) -> 42130.39 | J25: =I25+G25 -> 52315.37
A26: continua...

Sheet SELIC
A1: Data | B1: Selic diária D-2* | C1: * Utilizada no Índice de Atualização.
A2: 2022-09-15 | B2: 0.050788 | G2: Atenção:
A3: 2022-09-16 | B3: 0.050788 | G3: Atualizar a tabela com a taxa disponível no site do BNDES, em Moedas Contratuais, Sigla: TAXA SELIC D-2 (Cód: 015)
A4: 2022-09-19 | B4: 0.050788 | G4: https://www.bndes.gov.br/SiteBNDES/bndes/bndes_pt/Galerias/Convivencia/Moedas_Contratuais/index.html
A5: 2022-09-20 | B5: 0.050788 | G5: Se a taxa ainda não tiver sido divulgada, o sistema projeta utilizando a última disponível.
A6: 2022-09-21 | B6: 0.050788
A7: 2022-09-22 | B7: 0.050788
A8: 2022-09-23 | B8: 0.050788
A9: 2022-09-26 | B9: 0.050788
A10: 2022-09-27 | B10: 0.050788
A11: 2022-09-28 | B11: 0.050788
A12: 2022-09-29 | B12: 0.050788
A13: 2022-09-30 | B13: 0.050788
A14: 2022-10-03 | B14: 0.050788
A15: 2022-10-04 | B15: 0.050788
A16: 2022-10-05 | B16: 0.050788
A17: 2022-10-06 | B17: 0.050788
A18: 2022-10-07 | B18: 0.050788
A19: 2022-10-10 | B19: 0.050788
A20: 2022-10-11 | B20: 0.050788
A21: 2022-10-13 | B21: 0.050788
A22: 2022-10-14 | B22: 0.050788
A23: 2022-10-17 | B23: 0.050788
A24: 2022-10-18 | B24: 0.050788
A25: 2022-10-19 | B25: 0.050788
A26: 2022-10-20 | B26: 0.050788
A27: 2022-10-21 | B27: 0.050788
A28: 2022-10-24 | B28: 0.050788
A29: 2022-10-25 | B29: 0.050788
A30: 2022-10-26 | B30: 0.050788
A31: 2022-10-27 | B31: 0.050788
A32: 2022-10-28 | B32: 0.050788
A33: 2022-10-31 | B33: 0.050788
A34: 2022-11-01 | B34: 0.050788
A35: 2022-11-03 | B35: 0.050788
A36: 2022-11-04 | B36: 0.050788
A37: 2022-11-07 | B37: 0.050788
A38: 2022-11-08 | B38: 0.050788
A39: 2022-11-09 | B39: 0.050788
A40: 2022-11-10 | B40: 0.050788
A41: 2022-11-11 | B41: 0.050788
A42: 2022-11-14 | B42: 0.050788
A43: 2022-11-15 | B43: 0.050788
A44: 2022-11-16 | B44: 0.050788
A45: 2022-11-17 | B45: 0.050788
A46: 2022-11-18 | B46: 0.050788
A47: 2022-11-21 | B47: 0.050788
A48: 2022-11-22 | B48: 0.050788
A49: 2022-11-23 | B49: 0.050788
A50: 2022-11-24 | B50: 0.050788
A51: 2022-11-25 | B51: 0.050788
A52: 2022-11-28 | B52: 0.050788
A53: 2022-11-29 | B53: 0.050788
A54: 2022-11-30 | B54: 0.050788
A55: 2022-12-01 | B55: 0.050788
A56: 2022-12-02 | B56: 0.050788
A57: 2022-12-05 | B57: 0.050788
A58: 2022-12-06 | B58: 0.050788
A59: 2022-12-07 | B59: 0.050788
A60: 2022-12-08 | B60: 0.050788
A61: 2022-12-09 | B61: 0.050788
A62: 2022-12-12 | B62: 0.050788
A63: 2022-12-13 | B63: 0.050788
A64: 2022-12-14 | B64: 0.050788
A65: 2022-12-15 | B65: 0.050788
A66: 2022-12-16 | B66: 0.050788
A67: 2022-12-19 | B67: 0.050788
A68: 2022-12-20 | B68: 0.050788
A69: 2022-12-21 | B69: 0.050788
A70: 2022-12-22 | B70: 0.050788
A71: 2022-12-23 | B71: 0.050788
A72: 2022-12-26 | B72: 0.050788
A73: 2022-12-27 | B73: 0.050788
A74: 2022-12-28 | B74: 0.050788
A75: 2022-12-29 | B75: 0.050788
A76: 2022-12-30 | B76: 0.050788
A77: 2023-01-02 | B77: 0.050788
A78: 2023-01-03 | B78: 0.050788
A79: 2023-01-04 | B79: 0.050788
A80: 2023-01-05 | B80: 0.050788
A81: 2023-01-06 | B81: 0.050788
A82: 2023-01-09 | B82: 0.050788
A83: 2023-01-10 | B83: 0.050788
A84: 2023-01-11 | B84: 0.050788
A85: 2023-01-12 | B85: 0.050788
A86: 2023-01-13 | B86: 0.050788
A87: 2023-01-16 | B87: 0.050788
A88: 2023-01-17 | B88: 0.050788
A89: 2023-01-18 | B89: 0.050788
A90: 2023-01-19 | B90: 0.050788
A91: 2023-01-20 | B91: 0.050788
A92: 2023-01-23 | B92: 0.050788
A93: 2023-01-24 | B93: 0.050788
A94: 2023-01-25 | B94: 0.050788
A95: 2023-01-26 | B95: 0.050788
A96: 2023-01-27 | B96: 0.050788
A97: 2023-01-30 | B97: 0.050788
A98: 2023-01-31 | B98: 0.050788
A99: 2023-02-01 | B99: 0.050788
A100: 2023-02-02 | B100: 0.050788
A101: 2023-02-03 | B101: 0.050788
A102: 2023-02-06 | B102: 0.050788
A103: 2023-02-07 | B103: 0.050788
A104: 2023-02-08 | B104: 0.050788
A105: 2023-02-09 | B105: 0.050788
A106: 2023-02-10 | B106: 0.050788
A107: 2023-02-13 | B107: 0.050788
A108: 2023-02-14 | B108: 0.050788
A109: 2023-02-15 | B109: 0.050788
A110: 2023-02-16 | B110: 0.050788
A111: 2023-02-17 | B111: 0.050788
A112: 2023-02-22 | B112: 0.050788
A113: 2023-02-23 | B113: 0.050788
A114: 2023-02-24 | B114: 0.050788
A115: 2023-02-27 | B115: 0.050788
A116: 2023-02-28 | B116: 0.050788
A117: 2023-03-01 | B117: 0.050788
A118: 2023-03-02 | B118: 0.050788
A119: 2023-03-03 | B119: 0.050788
A120: 2023-03-06 | B120: 0.050788
A121: 2023-03-07 | B121: 0.050788
A122: 2023-03-08 | B122: 0.050788
A123: 2023-03-09 | B123: 0.050788
A124: 2023-03-10 | B124: 0.050788
A125: 2023-03-13 | B125: 0.050788
A126: 2023-03-14 | B126: 0.050788
A127: 2023-03-15 | B127: 0.050788
A128: 2023-03-16 | B128: 0.050788
A129: 2023-03-17 | B129: 0.050788
A130: 2023-03-20 | B130: 0.050788
A131: 2023-03-21 | B131: 0.050788
A132: 2023-03-22 | B132: 0.050788
A133: 2023-03-23 | B133: =B132 -> 0.050788
A134: 2023-03-24 | B134: =B133 -> 0.050788
A135: 2023-03-27 | B135: 0.050788
A136: 2023-03-28 | B136: 0.050788
A137: 2023-03-29 | B137: 0.050788
A138: 2023-03-30 | B138: 0.050788
A139: 2023-03-31 | B139: 0.050788
A140: 2023-04-03 | B140: 0.050788
A141: 2023-04-04 | B141: 0.050788
A142: 2023-04-05 | B142: 0.050788
A143: 2023-04-06 | B143: 0.050788
A144: 2023-04-10 | B144: 0.050788
A145: 2023-04-11 | B145: 0.050788
A146: 2023-04-12 | B146: 0.050788
A147: 2023-04-13 | B147: 0.050788
A148: 2023-04-14 | B148: 0.050788
A149: 2023-04-17 | B149: 0.050788
A150: 2023-04-18 | B150: 0.050788
A151: 2023-04-19 | B151: 0.050788
A152: 2023-04-20 | B152: 0.050788
A153: 2023-04-24 | B153: 0.050788
A154: 2023-04-25 | B154: 0.050788
A155: 2023-04-26 | B155: 0.050788
A156: 2023-04-27 | B156: 0.050788
A157: 2023-04-28 | B157: 0.050788
A158: 2023-05-02 | B158: 0.050788
A159: 2023-05-03 | B159: 0.050788
A160: 2023-05-04 | B160: 0.050788
A161: 2023-05-05 | B161: 0.050788
A162: 2023-05-08 | B162: 0.050788
A163: 2023-05-09 | B163: 0.050788
A164: 2023-05-10 | B164: 0.050788
A165: 2023-05-11 | B165: 0.050788
A166: 2023-05-12 | B166: 0.050788
A167: 2023-05-15 | B167: 0.050788
A168: 2023-05-16 | B168: 0.050788
A169: 2023-05-17 | B169: 0.050788
A170: 2023-05-18 | B170: 0.050788
A171: 2023-05-19 | B171: 0.050788
A172: 2023-05-22 | B172: 0.050788
A173: 2023-05-23 | B173: 0.050788
A174: 2023-05-24 | B174: 0.050788
A175: 2023-05-25 | B175: 0.050788
A176: 2023-05-26 | B176: 0.050788
A177: 2023-05-29 | B177: 0.050788
A178: 2023-05-30 | B178: 0.050788
A179: 2023-05-31 | B179: 0.050788
A180: 2023-06-01 | B180: 0.050788
A181: 2023-06-02 | B181: 0.050788
A182: 2023-06-05 | B182: 0.050788
A183: 2023-06-06 | B183: 0.050788
A184: 2023-06-07 | B184: 0.050788
A185: 2023-06-09 | B185: 0.050788
A186: 2023-06-12 | B186: 0.050788
A187: 2023-06-13 | B187: 0.050788
A188: 2023-06-14 | B188: 0.050788
A189: 2023-06-15 | B189: 0.050788
A190: 2023-06-16 | B190: 0.050788
A191: 2023-06-19 | B191: 0.050788
A192: 2023-06-20 | B192: 0.050788
A193: 2023-06-21 | B193: 0.050788
A194: 2023-06-22 | B194: 0.050788
A195: 2023-06-23 | B195: 0.050788
A196: 2023-06-26 | B196: 0.050788
A197: 2023-06-27 | B197: 0.050788
A198: 2023-06-28 | B198: =B197 -> 0.050788
A199: 2023-06-29 | B199: 0.050788
A200: 2023-06-30 | B200: 0.050788
... 125 more rows

Sheet Feriados
A1: FERIADOS
A2: 2009-01-01
A3: 2009-02-23
A4: 2009-02-24
A5: 2009-04-10
A6: 2009-04-21
A7: 2009-05-01
A8: 2009-06-11
A9: 2009-09-07
A10: 2009-10-12
A11: 2009-11-02
A12: 2009-11-15
A13: 2009-12-25
A14: 2010-01-01
A15: 2010-02-15
A16: 2010-02-16
A17: 2010-04-02
A18: 2010-04-21
A19: 2010-05-01
A20: 2010-06-03
A21: 2010-09-07
A22: 2010-10-12
A23: 2010-11-02
A24: 2010-11-15
A25: 2010-12-25
A26: 2011-01-01
A27: 2011-03-07
A28: 2011-03-08
A29: 2011-04-21
A30: 2011-04-22
A31: 2011-05-01
A32: 2011-06-23
A33: 2011-09-07
A34: 2011-10-12
A35: 2011-11-02
A36: 2011-11-15
A37: 2011-12-25
A38: 2012-01-01
A39: 2012-02-20
A40: 2012-02-21
A41: 2012-04-06
A42: 2012-04-21
A43: 2012-05-01
A44: 2012-06-07
A45: 2012-09-07
A46: 2012-10-12
A47: 2012-11-02
A48: 2012-11-15
A49: 2012-12-25
A50: 2013-01-01
A51: 2013-02-11
A52: 2013-02-12
A53: 2013-03-29
A54: 2013-04-21
A55: 2013-05-01
A56: 2013-05-30
A57: 2013-09-07
A58: 2013-10-12
A59: 2013-11-02
A60: 2013-11-15
A61: 2013-12-25
A62: 2014-01-01
A63: 2014-03-03
A64: 2014-03-04
A65: 2014-04-18
A66: 2014-04-21
A67: 2014-05-01
A68: 2014-06-19
A69: 2014-09-07
A70: 2014-10-12
A71: 2014-11-02
A72: 2014-11-15
A73: 2014-12-25
A74: 2015-01-01
A75: 2015-02-16
A76: 2015-02-17
A77: 2015-04-03
A78: 2015-04-21
A79: 2015-05-01
A80: 2015-06-04
A81: 2015-09-07
A82: 2015-10-12
A83: 2015-11-02
A84: 2015-11-15
A85: 2015-12-25
A86: 2016-01-01
A87: 2016-02-08
A88: 2016-02-09
A89: 2016-03-25
A90: 2016-04-21
A91: 2016-05-01
A92: 2016-05-26
A93: 2016-09-07
A94: 2016-10-12
A95: 2016-11-02
A96: 2016-11-15
A97: 2016-12-25
A98: 2017-01-01
A99: 2017-02-27
A100: 2017-02-28
A101: 2017-04-14
A102: 2017-04-21
A103: 2017-05-01
A104: 2017-06-15
A105: 2017-09-07
A106: 2017-10-12
A107: 2017-11-02
A108: 2017-11-15
A109: 2017-12-25
A110: 2018-01-01
A111: 2018-02-12
A112: 2018-02-13
A113: 2018-03-30
A114: 2018-04-21
A115: 2018-05-01
A116: 2018-05-31
A117: 2018-09-07
A118: 2018-10-12
A119: 2018-11-02
A120: 2018-11-15
A121: 2018-12-25
A122: 2019-01-01
A123: 2019-03-04
A124: 2019-03-05
A125: 2019-04-19
A126: 2019-04-21
A127: 2019-05-01
A128: 2019-06-20
A129: 2019-09-07
A130: 2019-10-12
A131: 2019-11-02
A132: 2019-11-15
A133: 2019-12-25
A134: 2020-01-01
A135: 2020-02-24
A136: 2020-02-25
A137: 2020-04-10
A138: 2020-04-21
A139: 2020-05-01
A140: 2020-06-11
A141: 2020-09-07
A142: 2020-10-12
A143: 2020-11-02
A144: 2020-11-15
A145: 2020-12-25
A146: 2021-01-01
A147: 2021-02-15
A148: 2021-02-16
A149: 2021-04-02
A150: 2021-04-21
A151: 2021-05-01
A152: 2021-06-03
A153: 2021-09-07
A154: 2021-10-12
A155: 2021-11-02
A156: 2021-11-15
A157: 2021-12-25
A158: 2022-01-01
A159: 2022-02-28
A160: 2022-03-01
A161: 2022-04-15
A162: 2022-04-21
A163: 2022-05-01
A164: 2022-06-16
A165: 2022-09-07
A166: 2022-10-12
A167: 2022-11-02
A168: 2022-11-15
A169: 2022-12-25
A170: 2023-01-01
A171: 2023-02-20
A172: 2023-02-21
A173: 2023-04-07
A174: 2023-04-21
A175: 2023-05-01
A176: 2023-06-08
A177: 2023-09-07
A178: 2023-10-12
A179: 2023-11-02
A180: 2023-11-15
A181: 2023-12-25
A182: 2024-01-01
A183: 2024-02-12
A184: 2024-02-13
A185: 2024-03-29
A186: 2024-04-21
A187: 2024-05-01
A188: 2024-05-30
A189: 2024-09-07
A190: 2024-10-12
A191: 2024-11-02
A192: 2024-11-15
A193: 2024-11-20
A194: 2024-12-25
A195: 2025-01-01
A196: 2025-03-03
A197: 2025-03-04
A198: 2025-04-18
A199: 2025-04-21
A200: 2025-05-01
... 462 more rows
